fUSD/lending_fUSD_20250320
["ID","MTS","AMOUNT","RATE_DAILY","PERIOD"]
[356429235,1742436657944,-500.0,0.00028254,2]
[356429236,1742436657954,-500.0,0.00028254,2]
[356429237,1742436657963,-948.52,0.00028254,2]
[356429238,1742436657973,-500.0,0.00028254,2]
[356429239,1742436657982,-500.0,0.00028254,2]
[356429240,1742436657992,-500.0,0.00028254,2]
[356429241,1742436658001,-500.0,0.00028254,2]
[356429242,1742436658011,-500.0,0.00028254,2]
[356429243,1742436658019,-518.08,0.00028254,2]
[356429244,1742436658028,-500.0,0.00028254,2]
[356429245,1742436658038,-500.0,0.00028254,2]
[356429246,1742436658048,-921.28,0.00028254,2]
[356429247,1742436658058,-500.0,0.00028254,2]
[356429248,1742436658067,-500.0,0.00028254,2]
[356429249,1742436658077,-500.0,0.00028254,2]
[356429250,1742436658087,-500.0,0.00028254,2]
[356429251,1742436658097,-500.0,0.00028254,2]
[356429252,1742436658106,-500.0,0.00028254,2]
[356429253,1742436658116,-500.0,0.00028254,2]
[356429254,1742436658126,-500.0,0.00028254,2]
[356429255,1742436658135,-500.0,0.00028254,2]
[356429256,1742436658145,-500.0,0.00028254,2]
[356429257,1742436658154,-500.0,0.00028254,2]
[356429258,1742436658163,-856.12,0.00028254,2]
[356429259,1742436658173,-529.41,0.00028254,2]
[356429260,1742436658182,-604.35,0.00028254,2]
[356429261,1742436658192,-500.0,0.00028254,2]
[356429262,1742436658202,-271.366055,0.00028254,2]
[356429263,1742436658211,-500.0,0.00028254,2]
[356429264,1742436658221,-500.0,0.00028254,2]
[356429265,1742436658231,-598.7,0.00028254,2]
[356429266,1742436658243,-686.21,0.00028254,2]
[356429267,1742436658252,-500.0,0.00028254,2]
[356429268,1742436658262,-500.0,0.00028254,2]
[356429269,1742436658271,-500.0,0.00028254,2]
[356429270,1742436658282,-500.0,0.00028254,2]
[356429271,1742436658291,-500.0,0.00028254,2]
[356429272,1742436658300,-500.0,0.00028254,2]
[356429273,1742436658309,-899.62,0.00028254,2]
[356429274,1742436658320,-642.25,0.00028254,2]
[356429275,1742436658330,-500.0,0.00028254,2]
[356429276,1742436658340,-222.502463,0.00028254,2]
[356429277,1742436658350,-500.0,0.00028254,2]
[356429278,1742436658359,-1828.51,0.00028254,2]
[356429279,1742436658368,-500.0,0.00028254,2]
[356429280,1742436658378,-394.71879087,0.00028254,2]
[356429281,1742436658387,-500.0,0.00028254,2]
[356429282,1742436658397,-660.1,0.00028254,2]
[356429283,1742436658407,-500.0,0.00028254,2]
[356429284,1742436658416,-519.59,0.00028254,2]
[356429285,1742436658426,-836.75,0.00028254,2]
[356429286,1742436658436,-750.58,0.00028254,2]
[356429287,1742436658445,-787.76,0.00028254,2]
[356429288,1742436658454,-500.0,0.00028254,2]
[356429289,1742436658464,-500.0,0.00028254,2]
[356429290,1742436658480,-758.2,0.00028254,2]
[356429291,1742436658490,-500.0,0.00028254,2]
[356429292,1742436658500,-500.0,0.00028254,2]
[356429293,1742436658509,-287.70427387,0.00028254,2]
[356429294,1742436658519,-500.0,0.00028254,2]
[356429295,1742436658528,-500.0,0.00028254,2]
[356429296,1742436658537,-500.0,0.00028254,2]
[356429297,1742436658547,-580.38,0.00028254,2]
[356429298,1742436658557,-1008.66,0.00028254,2]
[356429299,1742436658566,-500.0,0.00028254,2]
[356429300,1742436658576,-342.3419103,0.00028254,2]
[356429301,1742436658585,-951.45,0.00028254,2]
[356429302,1742436658595,-500.0,0.00028254,2]
[356429303,1742436658605,-500.0,0.00028254,2]
[356429304,1742436658614,-500.0,0.00028254,2]
[356429305,1742436658624,-687.09,0.00028254,2]
[356429306,1742436658633,-500.0,0.00028254,2]
[356429307,1742436658643,-500.0,0.00028254,2]
[356429308,1742436658652,-500.0,0.00028254,2]
[356429309,1742436658662,-662.78,0.00028254,2]
[356429310,1742436658672,-218.91582606,0.00028254,2]
[356429311,1742436658681,-500.0,0.00028254,2]
[356429312,1742436658692,-531.26,0.00028254,2]
[356429313,1742436658702,-500.0,0.00028254,2]
[356429314,1742436658712,-500.0,0.00028254,2]
[356429315,1742436658723,-500.0,0.00028254,2]
[356429316,1742436658734,-500.0,0.00028254,2]
[356429317,1742436658743,-500.0,0.00028254,2]
[356429318,1742436658753,-500.0,0.00028254,2]
[356429319,1742436658762,-613.64,0.00028254,2]
[356429320,1742436658772,-500.0,0.00028254,2]
[356429321,1742436658782,-500.0,0.00028254,2]
[356429322,1742436658792,-500.0,0.00028254,2]
[356429323,1742436658801,-500.0,0.00028254,2]
[356429324,1742436658811,-500.0,0.00028254,2]
[356429325,1742436658821,-511.93070976,0.00028254,2]
[356429326,1742436658831,-847.05,0.00028254,2]
[356429327,1742436658840,-500.0,0.00028254,2]
[356429328,1742436658851,-500.0,0.00028254,2]
[356429329,1742436658860,-500.0,0.00028254,2]
[356429330,1742436658870,-1042.03,0.00028254,2]
[356429331,1742436658879,-500.0,0.00028254,2]
[356429332,1742436658889,-500.0,0.00028254,2]
[356429333,1742436658898,-709.52,0.00028254,2]
[356429334,1742436658908,-765.77,0.00028254,2]
[356429335,1742436658917,-500.0,0.00028254,2]
[356429336,1742436658927,-591.65,0.00028254,2]
[356429337,1742436658937,-500.0,0.00028254,2]
[356429338,1742436658947,-500.0,0.00028255,2]
[356429339,1742436658956,-500.0,0.00028255,2]
[356429340,1742436658965,-500.0,0.00028255,2]
[356429341,1742436658976,-500.0,0.00028255,2]
[356429342,1742436658986,-218.74499622,0.00028255,2]
[356429343,1742436658996,-500.0,0.00028255,2]
[356429344,1742436659007,-707.73,0.00028255,2]
[356429345,1742436659016,-201.35593609,0.00028274,30]
[356429346,1742436659026,-151.80044,0.00028288,7]
[356429347,1742436659036,-721.3,0.00028298,2]
[356429348,1742436659045,-500.0,0.00028298,2]
[356429349,1742436659055,-642.28,0.00028298,2]
[356429350,1742436659065,-548.62,0.00028298,2]
[356429351,1742436659075,-500.0,0.00028298,2]
[356429352,1742436659084,-500.0,0.00028298,2]
[356429353,1742436659096,-730.07,0.00028298,2]
[356429354,1742436659110,-500.0,0.00028298,2]
[356429355,1742436659120,-500.0,0.00028298,2]
[356429356,1742436659130,-703.57,0.00028298,2]
[356429357,1742436659139,-539.58,0.00028298,2]
[356429358,1742436659149,-500.0,0.00028298,2]
[356429359,1742436659159,-772.23,0.00028298,2]
[356429360,1742436659169,-500.0,0.00028308,2]
[356429361,1742436659180,-603.87,0.00028308,2]
[356429362,1742436659190,-628.76,0.00028308,2]
[356429363,1742436659200,-650.27,0.00028308,2]
[356429364,1742436659209,-500.0,0.00028308,2]
[356429365,1742436659219,-500.0,0.00028308,2]
[356429366,1742436659229,-500.0,0.00028308,2]
[356429367,1742436659243,-500.0,0.00028308,2]
[356429368,1742436659252,-500.0,0.00028308,2]
[356429369,1742436659262,-500.0,0.00028308,2]
[356429370,1742436659271,-500.0,0.00028308,2]
[356429371,1742436659283,-500.0,0.00028308,2]
[356429372,1742436659293,-500.0,0.00028308,2]
[356429373,1742436659303,-500.0,0.00028308,2]
[356429374,1742436659314,-500.0,0.00028308,2]
[356429375,1742436659324,-500.0,0.00028308,2]
[356429376,1742436659333,-537.93,0.00028308,2]
[356429377,1742436659343,-500.0,0.00028308,2]
[356429378,1742436659351,-500.0,0.00028308,2]
[356429379,1742436659361,-500.0,0.00028308,2]
[356429380,1742436659371,-500.0,0.00028308,2]
[356429381,1742436659380,-899.46,0.00028308,2]
[356429382,1742436659389,-500.0,0.00028308,2]
[356429383,1742436659399,-500.0,0.00028308,2]
[356429384,1742436659409,-500.0,0.00028308,2]
[356429385,1742436659419,-500.0,0.00028308,2]
[356429386,1742436659429,-718.62,0.00028308,2]
[356429387,1742436659438,-500.0,0.00028308,2]
[356429388,1742436659447,-500.0,0.00028308,2]
[356429389,1742436659457,-500.0,0.00028308,30]
[356429390,1742436659467,-592.26,0.00028308,2]
[356429391,1742436659477,-500.0,0.00028308,2]
[356429392,1742436659487,-500.0,0.00028308,2]
[356429393,1742436659496,-500.0,0.00028308,2]
[356429394,1742436659505,-500.0,0.00028308,2]
[356429395,1742436659515,-500.0,0.00028308,2]
[356429396,1742436659525,-500.0,0.00028308,2]
[356429397,1742436659534,-1075.0,0.00028308,2]
[356429398,1742436659543,-674.87,0.00028308,2]
[356429399,1742436659553,-500.0,0.00028308,2]
[356429400,1742436659563,-852.02,0.00028308,2]
[356429401,1742436659572,-500.0,0.00028308,2]
[356429402,1742436659582,-500.0,0.00028308,2]
[356429403,1742436659592,-528.22,0.00028308,2]
[356429404,1742436659602,-500.0,0.00028308,2]
[356429405,1742436659611,-500.0,0.00028308,2]
[356429406,1742436659621,-500.0,0.00028308,2]
[356429407,1742436659630,-500.0,0.00028308,2]
[356429408,1742436659640,-500.0,0.00028308,2]
[356429409,1742436659650,-500.0,0.00028308,2]
[356429410,1742436659660,-500.0,0.00028308,2]
[356429411,1742436659669,-500.0,0.00028308,2]
[356429412,1742436659679,-500.0,0.00028308,2]
[356429413,1742436659688,-500.0,0.00028308,2]
[356429414,1742436659698,-500.0,0.00028308,2]
[356429415,1742436659707,-500.0,0.00028308,2]
[356429416,1742436659716,-500.0,0.00028308,2]
[356429417,1742436659726,-500.0,0.00028308,2]
[356429418,1742436659735,-500.0,0.00028308,2]
[356429419,1742436659745,-500.0,0.00028308,2]
[356429420,1742436659755,-517.99,0.00028308,2]
[356429421,1742436659765,-656.08,0.00028308,2]
[356429422,1742436659774,-500.0,0.00028308,2]
[356429423,1742436659784,-500.0,0.00028308,2]
[356429424,1742436659794,-500.0,0.00028308,2]
[356429425,1742436659803,-500.0,0.00028308,2]
[356429426,1742436659813,-500.0,0.00028308,2]
[356429427,1742436659823,-500.0,0.00028308,2]
[356429428,1742436659832,-500.0,0.00028308,2]
[356429429,1742436659842,-500.0,0.00028308,2]
[356429430,1742436659852,-511.43436693,0.00028308,2]
[356429431,1742436659861,-500.0,0.00028308,2]
[356429432,1742436659873,-544.49,0.00028308,2]
[356429433,1742436659882,-500.0,0.00028308,2]
[356429434,1742436659892,-500.0,0.00028308,2]
[356429435,1742436659901,-508.16,0.00028308,2]
[356429436,1742436659911,-500.0,0.00028308,2]
[356429437,1742436659920,-500.0,0.00028308,2]
[356429438,1742436659930,-500.0,0.00028308,2]
[356429439,1742436659939,-500.0,0.00028308,2]
[356429440,1742436659949,-500.0,0.00028308,2]
[356429441,1742436659958,-500.0,0.00028308,2]
[356429442,1742436659968,-500.0,0.00028308,2]
[356429443,1742436659977,-705.48,0.00028308,2]
[356429444,1742436659987,-500.0,0.00028308,2]
[356429445,1742436659998,-500.0,0.00028308,2]
[356429446,1742436660008,-500.0,0.00028308,2]
[356429447,1742436660019,-500.0,0.00028308,2]
[356429448,1742436660029,-500.0,0.00028308,2]
[356429449,1742436660039,-696.41,0.00028308,2]
[356429450,1742436660048,-500.0,0.00028308,2]
[356429451,1742436660058,-500.0,0.00028308,2]
[356429452,1742436660069,-425.37709826,0.00028308,2]
[356429453,1742436660079,-500.0,0.00028308,2]
[356429454,1742436660089,-500.0,0.00028308,2]
[356429455,1742436660099,-500.0,0.00028308,2]
[356429456,1742436660109,-500.0,0.00028308,2]
[356429457,1742436660119,-500.0,0.00028308,2]
[356429458,1742436660129,-539.49,0.00028308,2]
[356429459,1742436660139,-500.0,0.00028308,2]
[356429460,1742436660149,-500.0,0.00028308,2]
[356429461,1742436660159,-500.0,0.00028308,2]
[356429462,1742436660169,-500.0,0.00028308,2]
[356429463,1742436660179,-500.0,0.00028308,2]
[356429464,1742436660353,-500.0,0.00028308,2]
[356429465,1742436660383,-500.0,0.00028308,2]
[356429466,1742436660393,-500.0,0.00028308,2]
[356429467,1742436660405,-529.55,0.00028308,2]
[356429468,1742436660415,-500.0,0.00028308,2]
[356429469,1742436660424,-737.99,0.00028308,2]
[356429470,1742436660434,-500.0,0.00028308,2]
[356429471,1742436660446,-500.0,0.00028308,2]
[356429472,1742436660455,-500.0,0.00028308,2]
[356429473,1742436660465,-500.0,0.00028308,2]
[356429474,1742436660475,-668.7,0.00028308,2]
[356429475,1742436660484,-500.0,0.00028308,2]
[356429476,1742436660493,-574.08,0.00028308,2]
[356429477,1742436660503,-521.31,0.00028308,2]
[356429478,1742436660512,-753.72,0.00028308,2]
[356429479,1742436660521,-595.74,0.00028308,2]
[356429480,1742436660530,-500.0,0.00028308,2]
[356429481,1742436660539,-315.70496027,0.00028308,2]
[356429482,1742436660549,-500.0,0.00028308,2]
[356429483,1742436660558,-177.82016128,0.00028308,2]
[356429484,1742436660568,-500.0,0.00028308,2]
[356429485,1742436660578,-500.0,0.00028308,2]
[356429486,1742436660587,-500.0,0.00028308,2]
[356429487,1742436660596,-500.0,0.00028308,2]
[356429488,1742436660606,-500.0,0.00028308,2]
[356429489,1742436660615,-500.0,0.00028308,2]
[356429490,1742436660625,-612.03,0.00028308,2]
[356429491,1742436660635,-500.0,0.00028308,2]
[356429492,1742436660644,-627.85,0.00028308,2]
[356429493,1742436660654,-500.0,0.00028308,2]
[356429494,1742436660664,-500.0,0.00028308,2]
[356429495,1742436660673,-500.0,0.00028308,2]
[356429496,1742436660684,-500.0,0.00028308,2]
[356429497,1742436660693,-500.0,0.00028308,2]
[356429498,1742436660702,-505.81,0.00028308,2]
[356429499,1742436660712,-500.0,0.00028308,2]
[356429500,1742436660722,-500.0,0.00028308,2]
[356429501,1742436660732,-500.0,0.00028308,2]
[356429502,1742436660742,-665.96,0.00028308,2]
[356429503,1742436660751,-408.98372315,0.00028309,2]
[356429504,1742436660761,-545.5,0.00028309,2]
[356429505,1742436660770,-500.0,0.00028309,2]
[356429506,1742436660780,-500.0,0.00028309,2]
[356429507,1742436660791,-1065.87,0.00028309,2]
[356429508,1742436660800,-525.47,0.00028309,2]
[356429509,1742436660811,-500.0,0.00028309,2]
[356429510,1742436660823,-522.62,0.00028309,2]
[356429511,1742436660833,-500.0,0.00028309,2]
[356429512,1742436660843,-521.26,0.00028309,2]
[356429513,1742436660852,-500.0,0.00028309,2]
[356429514,1742436660862,-500.0,0.00028309,2]
[356429515,1742436660873,-500.0,0.00028309,2]
[356429516,1742436660883,-500.0,0.00028309,2]
[356429517,1742436660893,-500.0,0.00028309,2]
[356429518,1742436660903,-500.0,0.00028309,2]
[356429519,1742436660913,-500.0,0.00028309,2]
[356429520,1742436660922,-500.0,0.00028309,2]
[356429521,1742436660935,-500.0,0.00028309,2]
[356429522,1742436660948,-500.0,0.00028309,2]
[356429523,1742436660959,-500.0,0.00028309,2]
[356429524,1742436660969,-500.0,0.00028309,2]
[356429525,1742436660978,-1182.06,0.00028309,2]
[356429526,1742436660989,-480.71941659,0.00028309,2]
[356429527,1742436660998,-500.0,0.00028309,2]
[356429528,1742436661008,-500.0,0.00028309,2]
[356429529,1742436661019,-500.0,0.00028309,2]
[356429530,1742436661030,-500.0,0.00028309,2]
[356429531,1742436661041,-500.0,0.00028309,2]
[356429532,1742436661051,-500.0,0.00028309,2]
[356429533,1742436661060,-1235.06,0.00028309,2]
[356429534,1742436661070,-500.0,0.00028309,2]
[356429535,1742436661080,-500.0,0.00028309,2]
[356429536,1742436661089,-567.44,0.00028309,2]
[356429537,1742436661099,-500.0,0.00028309,2]
[356429538,1742436661108,-509.9055505,0.00028309,2]
[356429539,1742436661118,-500.0,0.00028309,2]
[356429540,1742436661127,-500.0,0.00028309,2]
[356429541,1742436661136,-500.0,0.00028309,2]
[356429542,1742436661146,-500.0,0.00028309,2]
[356429543,1742436661155,-500.0,0.00028309,2]
[356429544,1742436661164,-709.87,0.00028309,2]
[356429545,1742436661174,-669.19,0.00028309,2]
[356429546,1742436661184,-500.0,0.00028309,2]
[356429547,1742436661194,-500.0,0.00028309,2]
[356429548,1742436661203,-500.0,0.00028309,2]
[356429549,1742436661212,-500.0,0.00028309,2]
[356429550,1742436661222,-500.0,0.00028309,2]
[356429551,1742436661231,-500.0,0.00028309,2]
[356429552,1742436661243,-500.0,0.00028309,2]
[356429553,1742436661252,-395.280487,0.00028309,2]
[356429554,1742436661262,-500.0,0.00028309,2]
[356429555,1742436661271,-500.0,0.00028309,2]
[356429556,1742436661282,-669.44,0.00028309,2]
[356429557,1742436661292,-466.23832358,0.00028309,2]
[356429558,1742436661301,-500.0,0.00028309,2]
[356429559,1742436661311,-500.0,0.00028309,2]
[356429560,1742436661321,-638.73,0.00028309,2]
[356429561,1742436661330,-500.0,0.00028309,2]
[356429562,1742436661339,-500.0,0.00028309,2]
[356429563,1742436661349,-500.0,0.00028309,2]
[356429564,1742436661359,-667.71,0.00028309,2]
[356429565,1742436661368,-500.0,0.00028309,2]
[356429566,1742436661378,-500.0,0.00028309,2]
[356429567,1742436661386,-685.11,0.00028309,2]
[356429568,1742436661396,-247.63664636,0.00028309,2]
[356429569,1742436661405,-800.13,0.00028309,2]
[356429570,1742436661415,-500.0,0.00028309,2]
[356429571,1742436661423,-272.48738938,0.00028309,2]
[356429572,1742436661434,-500.0,0.00028309,2]
[356429573,1742436661443,-500.0,0.00028309,2]
[356429574,1742436661453,-500.0,0.00028309,2]
[356429575,1742436661463,-712.15,0.00028309,2]
[356429576,1742436661472,-500.0,0.00028309,2]
[356429577,1742436661481,-644.58270638,0.00028309,2]
[356429578,1742436661490,-500.0,0.00028309,2]
[356429579,1742436661499,-500.0,0.00028309,2]
[356429580,1742436661508,-500.0,0.00028309,2]
[356429581,1742436661518,-612.93,0.00028309,2]
[356429582,1742436661527,-500.0,0.00028309,2]
[356429583,1742436661537,-500.0,0.00028309,2]
[356429584,1742436661546,-500.0,0.00028309,2]
[356429585,1742436661556,-590.78,0.00028309,2]
[356429586,1742436661566,-500.0,0.00028309,2]
[356429587,1742436661575,-951.39,0.00028309,2]
[356429588,1742436661585,-594.58,0.00028309,2]
[356429589,1742436661595,-500.0,0.00028309,2]
[356429590,1742436661606,-682.18,0.00028309,2]
[356429591,1742436661616,-668.62,0.00028309,2]
[356429592,1742436661626,-611.83,0.00028309,2]
[356429593,1742436661636,-500.0,0.00028309,2]
[356429594,1742436661646,-500.0,0.00028309,2]
[356429595,1742436661655,-948.52,0.00028309,2]
[356429596,1742436661665,-500.0,0.00028309,2]
[356429597,1742436661674,-500.0,0.00028309,2]
[356429598,1742436661683,-500.0,0.00028309,2]
[356429599,1742436661693,-500.0,0.00028309,2]
[356429600,1742436661702,-500.0,0.00028309,2]
[356429601,1742436661711,-518.08,0.00028309,2]
[356429602,1742436661720,-500.0,0.00028309,2]
[356429603,1742436661729,-500.0,0.00028309,2]
[356429604,1742436661740,-921.28,0.00028309,2]
[356429605,1742436661749,-500.0,0.00028309,2]
[356429606,1742436661758,-500.0,0.00028309,2]
[356429607,1742436661768,-500.0,0.00028309,2]
[356429608,1742436661777,-500.0,0.00028309,2]
[356429609,1742436661787,-500.0,0.00028309,2]
[356429610,1742436661797,-500.0,0.00028309,2]
[356429611,1742436661806,-500.0,0.00028309,2]
[356429612,1742436661816,-500.0,0.00028309,2]
[356429613,1742436661825,-500.0,0.00028309,2]
[356429614,1742436661834,-500.0,0.00028309,2]
[356429615,1742436661844,-539.4871168,0.00028309,2]
[356429616,1742436661854,-856.12,0.00028309,2]
[356429617,1742436661864,-529.41,0.00028309,2]
[356429618,1742436661874,-604.35,0.00028309,2]
[356429619,1742436661884,-500.0,0.00028309,2]
[356429620,1742436661894,-500.0,0.00028309,2]
[356429621,1742436661903,-500.0,0.00028309,2]
[356429622,1742436661913,-598.7,0.00028309,2]
[356429623,1742436661922,-686.21,0.00028309,2]
[356429624,1742436661932,-500.0,0.00028309,2]
[356429625,1742436661941,-500.0,0.00028309,2]
[356429626,1742436661951,-500.0,0.00028309,2]
[356429627,1742436661961,-500.0,0.00028309,2]
[356429628,1742436661970,-500.0,0.00028309,2]
[356429629,1742436661979,-633.57915063,0.00028309,2]
[356429630,1742436661988,-899.62,0.00028309,2]
[356429631,1742436661997,-642.25,0.00028309,2]
[356429632,1742436662006,-500.0,0.00028309,2]
[356429633,1742436662017,-500.0,0.00028309,2]
[356429634,1742436662026,-1828.51,0.00028309,2]
[356429635,1742436662036,-500.0,0.00028309,2]
[356429636,1742436662045,-500.0,0.00028309,2]
[356429637,1742436662054,-660.1,0.00028309,2]
[356429638,1742436662063,-500.0,0.00028309,2]
[356429639,1742436662072,-519.59,0.00028309,2]
[356429640,1742436662081,-836.75,0.00028309,2]
[356429641,1742436662090,-750.58,0.00028309,2]
[356429642,1742436662100,-787.76,0.00028309,2]
[356429643,1742436662109,-500.0,0.00028309,2]
[356429644,1742436662119,-500.0,0.00028309,2]
[356429645,1742436662128,-758.2,0.00028309,2]
[356429646,1742436662138,-500.0,0.00028309,2]
[356429647,1742436662147,-500.0,0.00028309,2]
[356429648,1742436662156,-500.0,0.00028309,2]
[356429649,1742436662165,-406.04768492,0.00028309,2]
[356429650,1742436662175,-500.0,0.00028309,2]
[356429651,1742436662184,-580.38,0.00028309,2]
[356429652,1742436662193,-1008.66,0.00028309,2]
[356429653,1742436662202,-500.0,0.00028309,2]
[356429654,1742436662211,-951.45,0.00028309,2]
[356429655,1742436662220,-500.0,0.00028309,2]
[356429656,1742436662229,-500.0,0.00028309,2]
[356429657,1742436662240,-500.0,0.00028309,2]
[356429658,1742436662251,-687.09,0.00028309,2]
[356429659,1742436662260,-605.44950365,0.00028309,2]
[356429660,1742436662273,-500.0,0.00028309,2]
[356429661,1742436662287,-500.0,0.00028309,2]
[356429662,1742436662303,-662.78,0.00028309,2]
[356429663,1742436662317,-500.0,0.00028309,2]
[356429664,1742436662330,-531.26,0.00028309,2]
[356429665,1742436662344,-500.0,0.00028309,2]
[356429666,1742436662359,-500.0,0.00028309,2]
[356429667,1742436662374,-500.0,0.00028309,2]
[356429668,1742436662390,-500.0,0.00028309,2]
[356429669,1742436662405,-500.0,0.00028309,2]
[356429670,1742436662418,-500.0,0.00028309,2]
[356429671,1742436662430,-613.64,0.00028309,2]
[356429672,1742436662444,-500.0,0.00028309,2]
[356429673,1742436662457,-500.0,0.00028309,2]
[356429674,1742436662471,-500.0,0.00028309,2]
[356429675,1742436662485,-500.0,0.00028309,2]
[356429676,1742436662499,-181.68721011,0.00028309,2]
[356429677,1742436662513,-847.05,0.00028309,2]
[356429678,1742436662525,-500.0,0.00028309,2]
[356429679,1742436662540,-500.0,0.00028309,2]
[356429680,1742436662552,-500.0,0.00028309,2]
[356429681,1742436662565,-1042.03,0.00028309,2]
[356429682,1742436662578,-500.0,0.00028309,2]
[356429683,1742436662592,-500.0,0.00028309,2]
[356429684,1742436662608,-709.52,0.00028309,2]
[356429685,1742436662621,-765.77,0.00028309,2]
[356429686,1742436662634,-500.0,0.00028309,2]
[356429687,1742436662646,-591.65,0.00028309,2]
[356429688,1742436662660,-500.0,0.00028309,2]
[356429689,1742436662670,-500.0,0.0002831,2]
[356429690,1742436662681,-500.0,0.0002831,2]
[356429691,1742436662693,-500.0,0.0002831,2]
[356429692,1742436662708,-500.0,0.0002831,2]
[356429693,1742436662719,-500.0,0.0002831,2]
[356429694,1742436662729,-707.73,0.0002831,2]
[356429695,1742436662739,-155.83,0.00028313,2]
[356429696,1742436662751,-166.23137881,0.00028314,2]
[356429697,1742436662765,-721.3,0.00028352,2]
[356429698,1742436662778,-500.0,0.00028352,2]
[356429699,1742436662789,-642.28,0.00028352,2]
[356429700,1742436662800,-548.62,0.00028352,2]
[356429701,1742436662812,-500.0,0.00028352,2]
[356429702,1742436662823,-500.0,0.00028352,2]
[356429703,1742436662835,-730.07,0.00028352,2]
[356429704,1742436662847,-500.0,0.00028352,2]
[356429705,1742436662860,-500.0,0.00028352,2]
[356429706,1742436662872,-703.57,0.00028352,2]
[356429707,1742436662883,-539.58,0.00028352,2]
[356429708,1742436662896,-500.0,0.00028352,2]
[356429709,1742436662907,-772.23,0.00028352,2]
[356429710,1742436662919,-500.0,0.00028363,2]
[356429711,1742436662930,-603.87,0.00028363,2]
[356429712,1742436662943,-628.76,0.00028363,2]
[356429713,1742436662954,-650.27,0.00028363,2]
[356429714,1742436662965,-500.0,0.00028363,2]
[356429715,1742436662977,-500.0,0.00028363,2]
[356429716,1742436662989,-500.0,0.00028363,2]
[356429717,1742436663000,-425.58396998,0.00028363,2]
[356429718,1742436663012,-450.98239705,0.00028363,2]
[356429719,1742436663024,-500.0,0.00028363,2]
[356429720,1742436663036,-308.74180996,0.00028363,2]
[356429721,1742436663049,-500.0,0.00028363,2]
[356429722,1742436663061,-500.0,0.00028363,2]
[356429723,1742436663073,-500.0,0.00028363,2]
[356429724,1742436663085,-500.0,0.00028363,2]
[356429725,1742436663098,-500.0,0.00028363,2]
[356429726,1742436663111,-537.93,0.00028363,2]
[356429727,1742436663124,-500.0,0.00028363,2]
[356429728,1742436663139,-500.0,0.00028363,2]
[356429729,1742436663151,-500.0,0.00028363,2]
[356429730,1742436663164,-500.0,0.00028363,2]
[356429731,1742436663177,-899.46,0.00028363,2]
[356429732,1742436663190,-500.0,0.00028363,2]
[356429733,1742436663202,-500.0,0.00028363,2]
[356429734,1742436663216,-500.0,0.00028363,2]